bitfinex/quotes_ETHUSD_20240822
["timestamp","ask_amount","ask_price","bid_price","bid_amount"]
[1724340061860,3.84194,2602.9,2602.1,3.84294]
[1724340062043,3.84194,2602.9,2602.3,3.84268]
[1724340062288,7.38876734,2603.0,2602.3,3.84267]
[1724340062601,7.38876734,2603.0,2602.7,3.84209]
[1724340062743,3.84136,2603.3,2602.7,3.84209]
[1724340062939,3.84136,2603.3,2602.5,2.3055]
[1724340063157,7.38876734,2603.5,2602.9,2.3055]
[1724340063355,3.8412,2603.4,2602.9,2.3055]
[1724340063544,7.68244,2603.4,2602.9,2.3055]
[1724340063770,3.8412,2603.4,2602.9,2.3055]
[1724340063981,7.38876734,2603.5,2602.9,6.14736]
[1724340064143,3.84064,2603.8,2603.2,3.84142]
[1724340064354,7.38876734,2603.9,2603.3,2.4542]
[1724340064686,16.17004,2604.2,2603.4,0.629562]
[1724340064687,3.84067,2603.8,2603.4,0.629562]
[1724340064902,3.84067,2603.8,2603.3,2.4542]
[1724340065060,3.84061,2603.8,2603.3,2.4542]
[1724340065256,3.84061,2603.8,2602.4,0.80157968]
[1724340065257,3.84123,2603.4,2602.9,2.4542]
[1724340065585,3.84136,2603.3,2602.9,2.4542]
[1724340065774,3.84123,2603.4,2602.4,3.8425]
[1724340065775,3.84143,2603.2,2602.6,11.22228]
[1724340065957,3.84143,2603.2,2602.7,2.4264]
[1724340066154,3.84116,2603.4,2602.7,6.26855]
[1724340066355,3.84116,2603.4,2602.7,2.4264]
[1724340066569,3.84137,2603.3,2602.7,2.4264]
[1724340066790,3.84116,2603.4,2602.7,6.26855]
[1724340066791,7.68242,2603.4,2602.7,6.26855]
[1724340066950,7.38876734,2603.5,2602.7,2.4264]
[1724340067290,3.84224,2602.7,2602.1,2.4736]
[1724340067971,5.295,2603.2,2602.1,2.4736]
[1724340068171,7.39165,2603.1,2602.2,0.24736]
[1724340068372,3.84195,2602.9,2602.1,2.4736]
[1724340068587,3.84204,2602.8,2602.2,3.84278]
[1724340068961,3.84194,2602.9,2602.2,3.84278]
[1724340069950,3.84181,2603.0,2602.3,3.84265]
[1724340070150,3.84181,2603.0,2602.3,8.316945]
[1724340070388,3.84181,2603.0,2602.3,4.474275]
[1724340070589,3.84138,2603.3,2602.5,2.3735]
[1724340070757,3.84151,2603.2,2602.5,2.3735]
[1724340070956,3.84195,2602.9,2602.2,6.21636]
[1724340071297,3.84185,2603.0,2602.2,7.222212]
[1724340071447,3.84235,2602.6,2602.2,2.3735]
[1724340071955,7.68425,2602.8,2602.2,2.3735]
[1724340072155,0.55,2602.7,2602.2,2.3735]
[1724340072595,3.84233,2602.6,2602.2,2.3735]
[1724340072798,3.84262,2602.4,2601.9,2.79089828]
[1724340072996,7.68599,2602.2,2601.7,0.02]
[1724340073165,3.84297,2602.2,2601.7,0.02]
[1724340073368,0.55,2602.7,2601.9,3.84326]
[1724340073694,3.8424,2602.6,2602.0,3.84319]
[1724340073897,3.84249,2602.5,2601.8,3.84336]
[1724340074192,3.84269,2602.4,2601.7,1.029859]
[1724340074370,3.84277,2602.3,2601.7,4.873479]
[1724340074771,3.84246,2602.5,2601.8,4.99425476]
[1724340074982,3.84261,2602.4,2601.8,4.99425476]
[1724340075200,3.84261,2602.4,2601.8,1.15080476]
[1724340075680,3.84243,2602.6,2601.9,3.84331]
[1724340075883,3.84231,2602.6,2602.1,2.3821]
[1724340076283,7.38876734,2603.1,2602.1,2.3821]
[1724340076469,7.38876734,2603.1,2602.5,3.84244]
[1724340076470,11.23033734,2603.1,2602.5,3.84244]
[1724340076666,3.84147,2603.2,2602.6,2.3785]
[1724340076896,3.84166,2603.1,2602.6,2.3785]
[1724340077305,3.84174,2603.0,2602.6,2.3785]
[1724340077565,3.8415,2603.2,2602.3,6.17192]
[1724340077779,3.84186,2603.0,2602.4,0.617192]
[1724340077991,7.68424,2602.8,2602.3,2.3292]
[1724340078165,7.68424,2602.8,2601.8,3.0]
[1724340078166,3.84272,2602.4,2601.8,2.3382]
[1724340078370,3.84272,2602.4,2601.8,6.18168]
[1724340078713,7.68538,2602.4,2601.8,6.18168]
[1724340078886,7.68538,2602.4,2601.8,3.38269286]
[1724340079086,3.84275,2602.3,2601.8,3.38269286]
[1724340079284,3.84291,2602.2,2601.8,2.3382]
[1724340079511,3.84319,2602.0,2601.7,0.02]
[1724340079684,3.84344,2601.9,2601.7,0.02]
[1724340080274,3.84319,2602.0,2601.7,0.02]
[1724340080478,3.84282,2602.3,2601.7,0.02]
[1724340080479,7.68698,2601.8,2601.7,0.02]
[1724340081029,4.39349,2601.8,2601.7,0.02]
[1724340081177,3.84335,2601.9,2601.7,0.02]
[1724340081390,3.84311,2602.1,2601.7,0.02]
[1724340082000,3.84277,2602.3,2601.7,0.02]
[1724340082534,3.84277,2602.3,2601.8,2.4742]
[1724340082736,7.38876734,2602.4,2601.9,0.07685918]
[1724340083038,7.38876734,2602.4,2601.8,2.55105918]
[1724340083039,3.84266,2602.4,2601.8,2.55105918]
[1724340083332,3.84253,2602.5,2601.8,6.39444918]
[1724340083639,7.38876734,2603.0,2602.1,2.3139]
[1724340083772,7.38876734,2603.0,2601.9,0.68008172]
[1724340083773,3.84165,2603.1,2602.5,6.15634]
[1724340084136,3.84165,2603.1,2602.5,2.3139]
[1724340084137,3.84173,2603.0,2602.5,2.3139]
[1724340084271,3.84165,2603.1,2602.5,2.929556]
[1724340084500,7.38876734,2603.4,2602.5,2.3139]
[1724340084829,3.84135,2603.3,2602.5,6.15626]
[1724340085034,3.84157,2603.1,2602.5,6.15626]
[1724340085728,3.84135,2603.3,2602.6,3.84231]
[1724340085909,3.84143,2603.2,2602.6,0.999857]
[1724340086113,3.84135,2603.3,2602.6,4.842157]
[1724340086338,3.84168,2603.1,2602.6,0.999857]
[1724340086539,3.84168,2603.1,2602.5,6.15625]
[1724340086742,11.22990734,2603.4,2602.7,3.84201]
[1724340087045,8.25680267,2603.9,2603.0,3.84167]
[1724340087046,7.68151,2603.7,2603.0,3.84167]
[1724340087226,3.84087,2603.6,2602.9,6.22665]
[1724340087438,3.84087,2603.6,2602.9,7.233523]
[1724340087778,7.38876734,2603.8,2603.1,3.84149]
[1724340087984,16.17013,2604.1,2603.2,2.46171342]
[1724340087985,12.33,2604.1,2603.2,2.46171342]
[1724340088124,3.84018,2604.1,2603.3,0.07681349]
[1724340088319,3.84041,2603.9,2603.3,0.07681349]
[1724340088925,3.84018,2604.1,2603.4,3.84104]
[1724340089428,3.84024,2604.0,2603.5,2.4637]
[1724340089633,3.84018,2604.1,2603.5,2.4637]
[1724340089867,3.84018,2604.1,2603.5,3.07454565]
[1724340090220,7.68037,2604.1,2603.5,3.07454565]
[1724340090420,5.295,2604.3,2603.5,2.4637]
[1724340090678,3.84072,2603.7,2603.1,2.3955]
[1724340090834,3.84072,2603.7,2603.1,5.3955]
[1724340091024,3.84044,2603.9,2603.2,3.84137]
[1724340091219,3.84044,2603.9,2603.2,3.84134]
[1724340091434,3.84065,2603.8,2603.3,0.923684]
[1724340091662,3.84091,2603.6,2603.1,5.3955]
[1724340091866,3.84091,2603.6,2603.1,2.3955]
[1724340092153,3.84071,2603.7,2603.1,2.3955]
[1724340092358,2.3823,2603.9,2603.1,2.3955]
[1724340092359,3.84107,2603.5,2603.1,2.3955]
[1724340092746,3.84117,2603.4,2603.1,2.3955]
[1724340092957,3.84117,2603.4,2602.8,6.84192]
[1724340093254,3.84107,2603.5,2602.8,8.154203]
[1724340093417,3.84152,2603.2,2602.7,2.4387]
[1724340094360,3.84113,2603.4,2602.7,6.28072]
[1724340094521,2.3823,2603.6,2602.7,2.4387]
[1724340094723,3.84172,2603.0,2602.4,2.4311]
[1724340094949,3.84172,2603.0,2602.4,3.058492]
[1724340095122,3.84172,2603.0,2602.4,2.4311]
[1724340095325,3.84148,2603.2,2602.5,3.84244]
[1724340095524,3.84117,2603.4,2602.5,3.84236]
[1724340095821,3.84117,2603.4,2602.4,2.4311]
[1724340096065,3.84117,2603.4,2602.8,3.84195]
[1724340096230,3.84117,2603.4,2602.9,2.2544]
[1724340096764,3.84139,2603.3,2602.9,2.2544]
[1724340097471,3.84124,2603.4,2602.9,2.2544]
[1724340097673,3.84186,2603.0,2602.6,2.4636]
[1724340097981,3.8418,2603.0,2602.3,2.4636]
[1724340098136,3.8418,2603.0,2602.3,3.147881]
[1724340098334,3.8418,2603.0,2602.3,6.990611]
[1724340098530,7.68361,2603.0,2602.3,6.990611]
[1724340098732,3.8418,2603.0,2602.4,5.2258431]
[1724340099048,3.8419,2602.9,2602.4,1.3833431]
[1724340099366,3.8418,2603.0,2602.4,1.3833431]
[1724340099540,3.8418,2603.0,2602.5,3.84244]
[1724340099740,3.8418,2603.0,2602.4,1.3833431]
[1724340099741,3.84188,2602.9,2602.4,1.3833431]
[1724340100075,3.84188,2602.9,2602.3,6.30628]
[1724340100681,3.84188,2602.9,2602.4,3.84259]
[1724340101030,3.84128,2603.3,2602.5,3.84234]
[1724340101273,7.38876734,2603.4,2602.8,2.4516]
[1724340101432,7.38876734,2603.4,2602.9,3.84185]
[1724340101632,7.38876734,2603.4,2602.9,8.697199]
[1724340101853,7.38876734,2603.4,2602.9,4.855339]
[1724340102191,3.84078,2603.7,2603.1,3.8415]
[1724340102352,3.841,2603.5,2603.0,2.487]
[1724340102687,2.4562,2603.4,2602.7,3.84207]
[1724340102835,3.84115,2603.4,2602.5,2.487]
[1724340103035,3.84131,2603.3,2602.7,3.84208]
[1724340103283,3.84115,2603.4,2602.7,3.84207]
[1724340103437,7.6824,2603.4,2602.6,0.2487]
[1724340103633,7.6824,2603.4,2602.5,2.487]
[1724340103634,3.84183,2603.0,2602.5,2.487]
[1724340103862,3.84183,2603.0,2602.5,6.32944]
[1724340104485,3.84157,2603.1,2602.5,6.32944]
[1724340105037,3.84147,2603.2,2602.6,3.84229]
[1724340105156,3.84147,2603.2,2602.5,6.32937]
[1724340105157,3.84123,2603.4,2602.7,3.84207]
[1724340105489,11.22968734,2603.6,2602.9,6.14324]
[1724340105688,3.84122,2603.4,2602.9,2.3014]
[1724340105848,3.84111,2603.5,2602.9,2.3014]
[1724340106048,3.84128,2603.3,2602.9,2.3014]
[1724340106787,3.84109,2603.5,2602.9,2.3014]
[1724340107105,3.84122,2603.4,2602.9,3.3383637]
[1724340107303,3.84129,2603.3,2602.9,3.3383637]
[1724340107447,3.84146,2603.2,2602.9,2.3014]
[1724340107648,3.84129,2603.3,2602.9,2.3014]
[1724340108088,3.84129,2603.3,2602.7,3.84214]
[1724340108242,3.8415,2603.2,2602.6,6.0962]
[1724340108591,3.84129,2603.3,2602.7,8.678076]
[1724340108749,3.84144,2603.2,2602.7,4.835936]
[1724340109102,3.8415,2603.2,2602.6,2.2539]
[1724340109263,3.84119,2603.4,2602.8,3.84191]
[1724340109469,3.84119,2603.4,2602.7,3.84205]
[1724340109796,3.84069,2603.7,2603.1,3.84156]
[1724340110105,3.84069,2603.7,2603.1,7.68304]
[1724340110307,6.84063,2603.8,2603.1,4.844344]
[1724340110509,6.84062,2603.8,2603.2,3.84142]
[1724340110997,3.84077,2603.7,2603.1,4.844344]
[1724340111222,3.8409,2603.6,2603.1,1.002864]
[1724340111349,3.84151,2603.2,2602.7,2.4426]
[1724340111549,3.84165,2603.1,2602.7,2.4426]
[1724340111790,3.84165,2603.1,2602.6,3.0]
[1724340111791,3.84187,2602.9,2602.2,2.4825]
[1724340111989,7.68386,2602.9,2602.2,6.99779418]
[1724340112167,7.68386,2602.9,2602.3,3.84275]
[1724340112393,3.84216,2602.7,2602.2,3.15500418]
[1724340112611,3.84187,2602.9,2602.3,3.84269]
[1724340112923,3.84217,2602.7,2602.3,1.08404542]
[1724340113421,3.84217,2602.7,2602.2,3.15500418]
[1724340113831,3.84187,2602.9,2602.2,6.99780418]
[1724340114574,3.84187,2602.9,2602.4,3.84257]
[1724340114769,3.84142,2603.2,2602.4,3.84257]
[1724340115003,3.84158,2603.1,2602.6,3.84223]
[1724340115164,3.84129,2603.3,2602.5,0.384257]
[1724340115385,3.84142,2603.2,2602.5,0.384257]
[1724340115603,3.8416,2603.1,2602.5,4.226707]
[1724340116774,3.84179,2603.0,2602.5,0.384257]
[1724340117073,3.84202,2602.8,2602.3,3.84274]
[1724340117414,7.68364,2603.0,2602.3,3.84274]
[1724340117615,3.84187,2602.9,2602.3,3.84274]
[1724340118034,3.84171,2603.1,2602.4,3.84254]
[1724340118470,3.84174,2603.0,2602.2,6.99780418]
[1724340118780,3.84202,2602.8,2602.3,3.84273]
[1724340119084,3.84202,2602.8,2602.2,6.99776418]
[1724340119293,9.78786734,2603.4,2602.1,7.24259451]
[1724340119294,3.84217,2602.7,2602.1,0.39964451]
[1724340119468,3.84217,2602.7,2601.8,3.84348]
[1724340119469,3.84282,2602.3,2601.8,3.84348]
[1724340119773,3.84226,2602.7,2602.0,6.1691]
[1724340119977,2.464,2603.0,2602.0,6.16908]
[1724340120186,7.6842,2602.8,2602.2,3.84279]
[1724340120391,6.30581,2603.0,2602.4,3.84257]
[1724340120774,6.3058,2603.0,2602.2,3.8428]
[1724340120954,2.464,2603.0,2602.3,3.84274]
[1724340121307,3.84157,2603.1,2602.6,3.8423]
[1724340121437,3.84157,2603.1,2602.5,2.4828]
[1724340121631,3.84164,2603.1,2602.5,6.32511]
[1724340121863,3.84164,2603.1,2602.5,7.341886]
[1724340122187,3.84164,2603.1,2602.5,11.184266]
[1724340122491,3.84164,2603.1,2602.5,7.341886]
[1724340122686,3.84164,2603.1,2602.6,3.84226]
[1724340122846,3.84142,2603.2,2602.6,3.84226]
[1724340123184,3.84158,2603.1,2602.6,3.84226]
[1724340123346,6.27647,2603.3,2602.6,4.5763936]
[1724340123550,3.84085,2603.6,2603.0,3.84163]
[1724340123785,6.25988,2603.7,2603.0,7.68326]
[1724340124107,3.84157,2603.2,2602.7,2.3633]
[1724340124401,3.84176,2603.0,2602.1,5.3633]
[1724340124694,5.295,2603.1,2602.1,2.3633]
[1724340124695,3.84254,2602.5,2602.1,2.3633]
[1724340124995,7.6853,2602.4,2601.8,0.39956805]
[1724340125205,3.84249,2602.5,2601.8,4.89042781]
[1724340125476,3.84236,2602.6,2601.9,3.84331]
[1724340125686,4.39207,2602.8,2602.0,3.84318]
[1724340125833,3.84225,2602.7,2602.0,4.75648868]
[1724340126028,3.84238,2602.6,2601.8,4.24288898]
[1724340126591,3.8427,2602.4,2601.8,0.39947898]
[1724340126747,3.8427,2602.4,2601.8,4.24284898]
[1724340127095,3.8424,2602.6,2602.0,3.84318]
[1724340127251,3.84221,2602.7,2602.1,0.384318]
[1724340127452,3.84178,2603.0,2602.2,6.29303968]
[1724340127670,3.84178,2603.0,2602.2,10.059]
[1724340127841,3.84205,2602.8,2602.2,6.21611]
[1724340128131,7.68419,2602.8,2602.2,3.4176538]
[1724340128486,7.68419,2602.8,2602.2,7.2604338]
[1724340128487,3.84205,2602.8,2602.2,7.2604338]
[1724340128637,3.84205,2602.8,2602.2,3.4176538]
[1724340128638,7.68416,2602.8,2602.2,3.4176538]
[1724340128832,3.84205,2602.8,2602.2,3.4176538]
[1724340129031,3.84217,2602.7,2602.2,3.4176538]
[1724340129287,3.84239,2602.6,2602.2,2.3733]
[1724340130284,7.68479,2602.6,2601.9,3.84326]
[1724340130496,7.68484,2602.6,2601.9,3.84326]
[1724340130628,3.84247,2602.5,2601.9,3.84326]
[1724340130834,3.84247,2602.5,2602.0,3.84319]
[1724340131170,3.84247,2602.5,2602.1,0.768644]
[1724340131372,3.84233,2602.6,2602.1,0.768644]
[1724340131615,3.84254,2602.5,2601.9,3.84325]
[1724340131815,3.84233,2602.6,2601.9,3.84325]
[1724340132293,3.84223,2602.7,2602.1,3.84302]
[1724340132626,3.84181,2603.0,2602.4,3.84249]
[1724340132830,3.84181,2603.0,2602.3,2.4808]
[1724340133013,3.84195,2602.9,2602.3,2.4808]
[1724340133214,3.84181,2603.0,2602.4,3.84255]
[1724340133523,2.2774,2603.4,2602.3,2.4808]
[1724340133687,3.84211,2602.8,2602.3,2.4808]
[1724340134086,3.84211,2602.8,2602.3,6.32353]
[1724340134290,3.84181,2603.0,2602.4,3.84252]
[1724340135100,3.84181,2603.0,2602.5,3.84242]
[1724340135316,7.68305,2603.2,2602.6,0.77617827]
[1724340135517,3.84149,2603.2,2602.6,3.84229]
[1724340135719,3.84118,2603.4,2602.6,3.84229]
[1724340135720,3.84118,2603.4,2602.8,3.84192]
[1724340135903,3.84129,2603.3,2602.6,3.84219]
[1724340136112,3.84118,2603.4,2602.7,4.464119]
[1724340136334,7.6824,2603.4,2602.7,4.464119]
[1724340136542,3.84129,2603.3,2602.7,4.464119]
[1724340136833,11.22986734,2603.5,2602.8,3.842]
[1724340136998,11.22986734,2603.5,2602.9,2.4363]
[1724340136999,7.38876734,2603.5,2602.9,2.4363]
[1724340137200,7.38876734,2603.5,2602.9,6.27816]
[1724340137536,3.84113,2603.4,2602.9,2.4363]
[1724340137768,3.84137,2603.3,2602.9,2.4363]
[1724340137937,3.84113,2603.4,2602.7,3.84207]
[1724340138232,3.84132,2603.3,2602.8,0.621647]
[1724340138396,7.38876734,2603.5,2602.8,0.621647]
[1724340138603,7.38876734,2603.5,2603.1,3.84155]
[1724340139538,3.8409,2603.6,2603.0,3.84169]
[1724340139700,3.8409,2603.6,2603.0,7.68338]
[1724340139901,3.84088,2603.6,2603.0,3.84169]
[1724340140537,3.84098,2603.5,2602.8,3.84189]
[1724340140748,22.09996734,2603.8,2602.7,3.84204]
[1724340140965,3.84122,2603.4,2602.8,3.84201]
[1724340141254,3.84129,2603.3,2602.8,3.84192]
[1724340141879,3.84143,2603.2,2602.6,6.21659]
[1724340142165,10.01525,2603.3,2602.6,3.84228]
[1724340142317,3.84137,2603.3,2602.7,3.84213]
[1724340142650,3.84121,2603.4,2602.8,3.842]
[1724340142871,7.68218,2603.5,2602.8,3.842]
[1724340143055,7.68218,2603.5,2602.4,2.3881]
[1724340143056,3.84189,2602.9,2602.4,2.3881]
[1724340143203,3.84205,2602.8,2602.4,2.3881]
[1724340143405,3.84231,2602.6,2602.1,2.78537208]
[1724340143603,3.84257,2602.5,2601.9,3.84333]
[1724340143838,3.84269,2602.4,2601.8,2.3859]
[1724340144160,10.06259,2602.6,2601.9,3.84332]
[1724340144368,3.84211,2602.8,2602.0,3.84313]
[1724340144545,0.55,2602.7,2601.8,6.22928]
[1724340144854,3.84234,2602.6,2602.0,3.84316]
[1724340145056,0.55,2602.8,2601.8,10.73756991]
[1724340145057,3.84247,2602.5,2601.8,10.73756991]
[1724340145219,3.84247,2602.5,2601.8,6.89415991]
[1724340145562,3.84276,2602.3,2601.7,0.41961908]
[1724340145700,7.68565,2602.3,2601.7,0.41961908]
[1724340146025,3.84276,2602.3,2601.7,0.02]
[1724340146455,3.84297,2602.2,2601.7,0.02]
[1724340146623,6.18816,2602.3,2601.7,0.02]
[1724340147298,3.84293,2602.2,2601.7,0.02]
[1724340147739,3.84306,2602.1,2601.7,0.02]
[1724340147908,6.18816,2602.3,2601.7,0.02]
[1724340148341,3.84305,2602.1,2601.7,0.02]
[1724340148905,3.84339,2601.9,2601.7,0.02]
[1724340149138,3.84305,2602.1,2601.7,0.02]
[1724340149601,6.18822,2602.3,2601.7,0.02]
[1724340149799,3.84243,2602.6,2601.8,6.23957]
[1724340150005,3.84243,2602.6,2602.0,3.8431]
[1724340150242,7.68424,2602.8,2602.1,3.84295]
[1724340150441,3.84208,2602.8,2602.2,0.768605]
[1724340150656,3.84208,2602.8,2602.2,3.84281]
[1724340150948,3.84225,2602.7,2601.9,3.84324]
[1724340151248,6.30769,2603.0,2601.8,6.23964]
[1724340151465,3.84188,2602.9,2602.3,3.84264]
[1724340152110,6.30769,2603.0,2602.4,3.84258]
[1724340152409,3.84179,2603.0,2602.4,4.611101]
[1724340152732,3.8421,2602.8,2602.4,0.768521]
[1724340152922,3.8421,2602.8,2602.3,2.3321]
[1724340153252,3.84259,2602.5,2601.9,3.84323]
[1724340153548,3.84263,2602.4,2601.8,3.84348]
[1724340153864,3.84263,2602.4,2601.9,1.07941276]
[1724340154205,3.84299,2602.2,2601.7,3.1071276]
[1724340154421,3.8427,2602.4,2601.7,6.16481]
[1724340154853,5.295,2602.7,2601.7,0.02]
[1724340155050,7.68629,2602.1,2601.7,0.02]
[1724340155250,3.84314,2602.1,2601.7,0.02]
[1724340155609,7.68629,2602.1,2601.7,0.02]
[1724340155817,3.84311,2602.1,2601.7,0.02]
[1724340156015,3.84343,2601.9,2601.7,0.02]
[1724340156646,7.68565,2602.3,2601.7,0.02]
[1724340156848,3.84278,2602.3,2601.7,0.02]
[1724340157553,10.10643,2602.5,2601.7,0.09686442]
[1724340157778,3.84241,2602.6,2602.0,3.84318]
[1724340158086,3.84221,2602.7,2602.0,3.84318]
[1724340158087,7.68448,2602.7,2602.0,3.84318]
[1724340158437,3.84262,2602.4,2601.8,6.18909]
[1724340158649,3.84237,2602.6,2601.9,3.84332]
[1724340158864,3.84217,2602.7,2601.9,3.84332]
[1724340159078,3.8423,2602.7,2601.9,3.84328]
[1724340159231,3.84251,2602.5,2601.9,3.84332]
[1724340159670,3.84251,2602.5,2601.9,3.84326]
[1724340159969,3.84251,2602.5,2601.9,4.8871478]
[1724340160469,7.68455,2602.7,2601.9,4.8871378]
[1724340160670,7.68455,2602.7,2602.1,3.84304]
[1724340160671,3.84225,2602.7,2602.1,3.84304]
[1724340160833,3.84225,2602.7,2602.1,4.71605778]
[1724340161330,7.68451,2602.7,2602.1,4.71605778]
[1724340161557,8.295,2603.1,2602.2,3.84282]
[1724340161756,3.84195,2602.9,2602.4,2.4824]
[1724340162326,11.23028734,2603.2,2602.6,7.68456]
[1724340162457,7.38876734,2603.2,2602.6,3.84228]
[1724340162663,3.84129,2603.3,2602.8,3.8419]
[1724340162862,3.84129,2603.3,2602.7,2.3246]
[1724340163100,7.68334,2603.1,2602.7,2.3246]
[1724340163406,7.68334,2603.1,2602.4,4.475001]
[1724340163407,7.68331,2603.1,2602.5,3.84244]
[1724340163602,3.84165,2603.1,2602.5,4.9066441]
[1724340163761,3.84204,2602.8,2602.4,2.3246]
[1724340163963,3.84204,2602.8,2602.2,9.7011]
[1724340164200,3.84173,2603.0,2602.2,9.7011]
[1724340164201,7.68356,2603.0,2602.3,3.84267]
[1724340164363,7.68355,2603.0,2602.3,3.84267]
[1724340164710,3.84209,2602.8,2602.2,6.16399]
[1724340164923,3.84209,2602.8,2602.2,7.55198478]
[1724340165063,3.84211,2602.8,2602.1,3.0]
[1724340165402,3.84189,2602.9,2602.3,3.84271]
[1724340165775,3.84202,2602.8,2602.2,3.84275]
[1724340166107,3.84202,2602.8,2602.2,4.611337]
[1724340166422,3.84202,2602.8,2602.2,3.84275]
[1724340166738,7.68416,2602.8,2602.2,3.84275]
[1724340167015,7.68412,2602.8,2602.2,3.84275]
[1724340167363,3.84202,2602.8,2602.2,3.84275]
[1724340167617,3.84218,2602.7,2602.2,3.84275]
[1724340167981,3.84202,2602.8,2602.2,3.84275]
[1724340168181,3.84246,2602.5,2601.9,2.4173]
[1724340168494,3.84254,2602.5,2601.9,9.2606]
[1724340168675,3.84254,2602.5,2601.9,7.872996]
[1724340169564,3.84254,2602.5,2602.0,3.84317]
[1724340169823,3.84254,2602.5,2601.9,4.029696]
[1724340169824,3.84272,2602.4,2601.9,4.029696]
[1724340170108,3.84254,2602.5,2601.9,7.873026]
[1724340170601,3.84253,2602.5,2601.9,7.873026]
[1724340170808,7.68507,2602.5,2601.9,7.873026]
[1724340171013,3.84253,2602.5,2601.9,7.873026]
[1724340171565,3.84253,2602.5,2602.0,3.84318]
[1724340172363,11.23080734,2602.8,2602.2,3.84285]
[1724340172605,11.23080734,2602.8,2602.2,7.68563]
[1724340172817,11.23080734,2602.8,2602.3,3.84272]
[1724340173018,15.07290734,2602.8,2602.3,3.84272]
[1724340173227,11.23080734,2602.8,2602.2,3.84289]
[1724340173718,11.23080734,2602.8,2602.1,3.84304]
[1724340173719,3.84231,2602.6,2602.1,3.84304]
[1724340173926,3.84231,2602.6,2601.9,7.872906]
[1724340173927,3.84249,2602.5,2601.9,7.872906]
[1724340174085,3.84264,2602.4,2601.9,6.26051]
[1724340174279,3.84264,2602.4,2601.7,10.70711]
[1724340174583,3.84284,2602.3,2601.8,3.84346]
[1724340174812,3.84284,2602.3,2601.7,6.86353]
[1724340174813,3.84284,2602.3,2601.7,6.86362]
[1724340174997,3.84284,2602.3,2601.7,6.86354]
[1724340175343,7.68567,2602.3,2601.8,3.84345]
[1724340175486,7.68569,2602.3,2601.8,3.84345]
[1724340175683,3.84261,2602.4,2601.8,3.84337]
[1724340175925,3.84256,2602.5,2601.8,3.84337]
[1724340175926,3.84277,2602.3,2601.8,3.84337]
[1724340176099,3.84277,2602.3,2601.7,0.02]
[1724340176327,3.84315,2602.1,2601.7,0.02]
[1724340176566,3.986,2602.3,2601.7,0.02]
[1724340176567,2.9517,2602.2,2601.7,0.02]
[1724340176708,6.79464,2602.2,2601.7,0.02]
[1724340177452,3.84311,2602.1,2601.7,0.02]
[1724340177945,4.3929,2602.2,2601.7,0.02]
[1724340178306,2.3172,2602.0,2601.7,0.02]
[1724340178503,3.84306,2602.1,2601.7,0.02]
[1724340178695,0.55,2602.2,2601.7,3.86363]
[1724340179033,0.55,2602.2,2601.7,0.02]
[1724340179813,3.84305,2602.1,2601.7,0.02]
[1724340179995,3.84321,2602.0,2601.7,0.02]
[1724340180188,3.84305,2602.1,2601.7,0.02]
[1724340180426,3.84344,2601.9,2601.7,0.02]
[1724340180634,10.03418,2601.8,2601.7,0.02]
[1724340180803,6.19069,2601.8,2601.7,0.02]
[1724340181131,6.74069,2601.8,2601.7,0.02]
[1724340181695,3.84478,2601.0,2600.5,2.3275]
[1724340181942,3.84506,2600.8,2600.2,2.4525989]
[1724340182316,3.84506,2600.8,2600.4,0.39927602]
[1724340182317,11.67682,2600.5,2600.4,0.39927602]
[1724340182521,3.8456,2600.4,2600.2,0.1250989]
[1724340182691,3.84571,2600.3,2600.2,0.1250989]
[1724340182893,10.08072,2600.3,2600.2,0.1250989]
[1724340183269,10.63072,2600.3,2600.2,0.1250989]
[1724340183596,14.61672,2600.3,2600.2,0.1250989]
[1724340184224,9.9253,2600.3,2598.5,2.4968]
[1724340184344,9.9253,2600.3,2598.9,0.39960653]
[1724340184345,3.986,2599.5,2598.9,0.39960653]
[1724340184542,3.986,2599.5,2598.6,0.24968]
[1724340184543,3.8469,2599.5,2598.6,0.24968]
[1724340184749,3.84743,2599.2,2598.6,0.24968]
[1724340184943,3.84694,2599.5,2598.6,0.24968]
[1724340185221,2.2564,2600.0,2599.0,3.84758]
[1724340185418,2.2564,2600.0,2598.6,4.48590943]
[1724340185419,0.55,2599.9,2598.9,3.84772]
[1724340185592,4.3964,2599.9,2599.1,3.84745]
[1724340185786,4.3964,2599.9,2599.1,3.84737]
[1724340185949,0.55,2599.9,2599.5,3.84687]
[1724340186151,3.84572,2600.3,2599.5,4.616273]
[1724340186397,2.4125,2600.4,2599.5,4.616273]
[1724340186716,2.4125,2600.4,2599.2,2.3138]
[1724340187010,6.61499,2600.8,2600.0,3.84602]
[1724340187146,3.84513,2600.7,2600.0,3.84602]
[1724340187688,2.77,2600.8,2600.0,3.84602]
[1724340187918,2.77,2600.8,2600.1,3.8459]
[1724340188440,3.84522,2600.7,2600.0,3.84602]
[1724340189053,3.84484,2600.9,2600.2,3.84576]
[1724340189381,3.84484,2600.9,2600.0,4.843341]
[1724340189382,3.8455,2600.5,2600.0,0.997261]
[1724340189594,3.84527,2600.6,2600.0,0.997261]
[1724340189798,3.84528,2600.6,2600.0,0.997261]
[1724340190215,3.84528,2600.6,2599.7,3.84651]
[1724340190216,3.84559,2600.4,2599.7,3.84651]
[1724340190557,2.2934,2600.6,2599.3,7.69415]
[1724340190558,3.84619,2600.0,2599.3,7.69415]